bitfinex/quotes_ETHUSD_20250810
["timestamp","ask_amount","ask_price","bid_price","bid_amount"]
[1754822140909,0.1192,4205.2,4204.7,2.37824782]
[1754822140910,3.848,4205.2,4204.7,2.37824782]
[1754822141081,3.848,4205.2,4204.4,2.37844019]
[1754822141082,2.81686473,4205.1,4204.4,2.37844019]
[1754822141249,0.1192,4204.9,4204.2,0.1192]
[1754822141582,0.9198,4205.1,4203.6,0.041]
[1754822141583,0.9198,4204.8,4203.6,0.041]
[1754822141760,0.1192,4204.0,4203.6,0.041]
[1754822141969,2.37860082,4204.2,4203.6,0.041]
[1754822141970,5.37885672,4203.7,4203.6,0.041]
[1754822142151,5.49805672,4203.7,4203.6,0.041]
[1754822142351,6.41785672,4203.7,4203.6,0.041]
[1754822143003,3.9722,4203.7,4203.6,0.041]
[1754822143165,7.27085672,4203.7,4203.6,0.041]
[1754822143863,0.55,4203.4,4198.8,0.1202]
[1754822144077,0.55,4201.7,4198.8,0.1202]
[1754822144290,2.38055562,4200.7,4198.8,0.1202]
[1754822144471,6.85035562,4200.7,4199.3,2.38134316]
[1754822144708,6.85035562,4200.7,4198.6,0.04]
[1754822144709,6.72034829,4200.7,4198.6,0.04]
[1754822144911,12.62546555,4200.7,4200.6,1e-08]
[1754822145112,8.78260592,4200.7,4200.6,1e-08]
[1754822145311,8.78260592,4200.7,4198.6,0.04]
[1754822145312,0.04000001,4199.5,4198.6,0.04]
[1754822145510,44.9647737,4200.7,4198.6,0.04]
[1754822145511,4.017,4199.4,4198.6,0.04]
[1754822145720,0.4388,4200.0,4198.6,0.04]
[1754822145721,4.047,4200.3,4198.7,0.9199]
[1754822145889,4.047,4200.3,4198.8,0.94371632]
[1754822146090,4.4517,4200.3,4198.9,0.9199]
[1754822146302,4.047,4200.3,4199.0,0.94371519]
[1754822146501,4.047,4200.3,4199.2,2.38137502]
[1754822146721,4.047,4200.3,4199.3,0.9199]
[1754822146937,5.713,4202.4,4199.5,0.55]
[1754822147088,0.4388,4202.0,4200.5,2.3806553]
[1754822147291,0.4388,4202.0,4199.4,2.38127111]
[1754822147292,0.4388,4202.1,4200.6,0.958]
[1754822147614,2.37982968,4202.0,4200.6,0.958]
[1754822147926,0.04,4201.9,4200.7,0.4592]
[1754822148096,0.04,4201.9,4200.7,0.957]
[1754822148300,0.04,4201.9,4200.8,0.957]
[1754822149110,0.04,4201.9,4200.9,0.957]
[1754822149667,0.04,4201.9,4201.5,2.38005925]
[1754822149955,0.04,4201.9,4201.0,1.3527]
[1754822150125,0.04,4201.9,4201.7,2.37998003]
[1754822150445,0.04,4201.9,4201.7,2.37997245]
[1754822150814,0.04,4201.9,4201.2,0.4978]
[1754822151291,1.8,4201.8,4200.7,0.4978]
[1754822151561,0.04,4201.9,4200.7,0.4978]
[1754822151761,2.38011235,4201.5,4200.7,0.4978]
[1754822151987,2.38011235,4201.5,4200.6,0.001]
[1754822151988,2.38053416,4200.8,4200.6,0.001]
[1754822152136,4.054,4200.7,4200.6,0.001]
[1754822152330,4.963,4200.7,4200.6,0.001]
[1754822153053,7.34355562,4200.7,4200.6,1e-08]
[1754822153843,7.89355562,4200.7,4200.6,1e-08]
[1754822154148,11.51217277,4200.7,4200.6,1e-08]
[1754822155237,11.51217277,4200.7,4197.0,2.38265393]
[1754822155238,5.93061229,4200.6,4197.0,2.38265393]
[1754822155437,5.93061229,4200.6,4196.9,0.4978]
[1754822155438,3.0,4199.5,4197.1,2.38254153]
[1754822155663,2.38117915,4199.6,4197.5,0.957]
[1754822155664,9.799,4199.4,4197.5,0.957]
[1754822155850,2.38193781,4198.3,4197.5,0.957]
[1754822156166,4.084,4198.2,4197.5,0.957]
[1754822156367,1.8,4197.9,4197.5,0.4978]
[1754822156665,4.084,4197.8,4197.5,0.4978]
[1754822156843,4.084,4197.8,4197.7,0.957]
[1754822157035,4.08,4198.0,4197.7,0.957]
[1754822157235,4.08,4198.0,4196.6,0.4992]
[1754822157457,2.38214641,4197.9,4197.0,0.4592]
[1754822157667,2.38225695,4197.7,4197.0,0.4592]
[1754822157868,6.46212321,4198.0,4197.0,0.4592]
[1754822157869,4.08,4198.0,4197.0,0.4592]
[1754822158070,6.46209281,4198.0,4197.0,2.84182775]
[1754822158273,4.08,4198.0,4197.0,0.4592]
[1754822159069,4.08,4198.0,4196.6,0.04]
[1754822159268,2.38225695,4197.7,4196.8,0.4978]
[1754822159453,2.38225695,4197.7,4196.6,0.04]
[1754822159654,3.29125695,4197.7,4196.6,0.04]
[1754822160341,0.4393,4198.6,4196.6,0.04]
[1754822160538,4.149,4198.5,4196.9,0.957]
[1754822160760,0.18212779,4199.0,4197.2,2.38248994]
[1754822160960,0.4697,4199.1,4197.3,0.4978]
[1754822160961,4.5893,4198.9,4197.3,0.4978]
[1754822161168,4.5893,4198.9,4196.6,0.04]
[1754822161169,0.909,4198.8,4196.8,2.38272679]
[1754822161375,0.909,4198.8,4196.6,0.04]
[1754822161376,0.5,4198.6,4197.7,0.957]
[1754822162044,0.5,4198.6,4197.5,2.38236789]
[1754822162244,2.38185996,4198.4,4197.6,0.4992]
[1754822162495,0.5,4198.6,4197.6,0.4992]
[1754822162496,2.38225695,4197.7,4197.6,0.04]
[1754822162771,4.147,4197.7,4197.6,0.04]
[1754822163369,4.146,4197.7,4197.6,0.997]
[1754822163584,4.146,4197.7,4197.6,0.5378]
[1754822163773,0.5,4198.6,4197.6,0.997]
[1754822163984,4.143,4198.5,4197.6,0.997]
[1754822164364,4.143,4198.5,4197.6,0.04]
[1754822164365,2.38180302,4198.5,4197.6,0.04]
[1754822164561,0.5,4198.6,4197.6,0.04]
[1754822164794,0.5,4198.6,4197.6,0.997]
[1754822165096,4.148,4198.5,4197.7,2.38225695]
[1754822165301,4.2672,4198.5,4197.9,0.1192]
[1754822165608,6.64900596,4198.5,4197.9,0.1192]
[1754822165769,2.38185975,4198.4,4197.9,0.1192]
[1754822165971,4.2672,4198.5,4197.9,0.1192]
[1754822166273,4.2672,4198.5,4197.9,0.5784]
[1754822166274,6.52486713,4198.4,4197.9,0.5784]
[1754822166480,4.143,4198.4,4197.9,1.0762]
[1754822166674,0.1192,4198.5,4198.0,0.957]
[1754822166875,4.141,4198.4,4198.0,0.957]
[1754822167380,4.141,4198.4,4198.0,3.33905554]
[1754822167587,4.138,4198.3,4198.2,2.38197322]
[1754822167900,4.138,4198.3,4198.2,0.957]
[1754822168302,4.138,4198.3,4198.2,0.4592]
[1754822168595,4.138,4198.3,4197.9,0.1192]
[1754822168763,0.5,4198.6,4197.9,0.1192]
[1754822168968,4.133,4198.5,4197.9,0.1192]
[1754822169396,4.133,4198.5,4198.0,2.3820867]
[1754822169716,0.4393,4198.4,4197.6,0.04]
[1754822169895,0.909,4198.4,4197.6,0.04]
[1754822170099,2.38211192,4198.0,4197.6,0.04]
[1754822170304,4.127,4197.9,4197.6,0.04]
[1754822170504,6.50921497,4197.8,4197.6,0.04]
[1754822170798,2.38225695,4197.7,4197.6,0.04]
[1754822171012,4.5663,4197.8,4197.6,0.04]
[1754822171168,2.38225695,4197.7,4197.6,0.04]
[1754822171499,2.88314037,4197.7,4197.6,0.04]
[1754822171717,2.88314037,4197.7,4197.1,0.001]
[1754822171718,2.38254074,4197.2,4197.1,0.001]
[1754822172018,12.72642416,4197.2,4197.1,0.001]
[1754822172314,14.46988406,4197.2,4197.1,0.001]
[1754822172514,14.47004453,4197.2,4197.1,0.001]
[1754822172716,7.12888342,4197.2,4197.1,0.001]
[1754822173021,6.21988342,4197.2,4197.1,0.001]
[1754822173309,10.34288342,4197.2,4197.1,0.001]
[1754822173682,6.21988342,4197.2,4197.1,2.3835975]
[1754822173888,9.84,4197.2,4197.1,3.3405975]
[1754822174192,0.62606587,4198.1,4197.9,2.38212587]
[1754822174397,4.62143157,4198.0,4197.9,2.38214345]
[1754822174575,4.61943157,4198.0,4197.9,2.38214345]
[1754822175076,4.61743157,4198.0,4197.8,2.38218642]
[1754822175275,4.61743157,4198.0,4197.1,1.53032946]
[1754822175276,1.41043157,4197.9,4197.1,0.001]
[1754822175493,0.50143157,4197.8,4197.1,0.001]
[1754822175804,2.38233152,4197.6,4197.1,0.001]
[1754822176006,4.62843157,4197.5,4197.1,0.001]
[1754822176306,0.50143157,4197.4,4197.1,0.001]
[1754822176512,2.88391834,4197.3,4197.1,0.001]
[1754822176817,0.50143157,4197.2,4197.1,0.001]
[1754822177303,0.83542633,4198.2,4197.7,2.38225695]
[1754822177519,0.002,4199.3,4198.8,2.38163284]
[1754822178188,4.175,4199.2,4198.8,3.30653284]
[1754822179587,0.002,4199.3,4198.8,3.30653284]
[1754822179588,4.167,4199.0,4198.8,3.30653284]
[1754822179893,4.167,4199.0,4198.8,2.50083284]
[1754822180095,4.167,4199.0,4198.5,0.1192]
[1754822180284,4.167,4199.0,4198.6,2.38174629]
[1754822180479,0.1192,4199.1,4198.8,2.38163284]
[1754822180677,4.167,4198.9,4198.8,2.38163284]
[1754822181331,4.167,4198.9,4198.5,0.1192]
[1754822181675,4.167,4198.9,4198.6,2.38173417]
[1754822182111,4.161,4198.8,4198.7,2.38168957]
[1754822182281,4.161,4198.8,4198.7,2.86995316]
[1754822183079,4.161,4198.8,4198.5,0.1192]
[1754822183291,4.161,4198.8,4198.7,2.38168957]
[1754822183496,4.161,4198.8,4198.6,2.38174269]
[1754822183904,4.161,4198.8,4198.5,0.1192]
[1754822184099,4.161,4198.8,4198.5,2.50100224]
[1754822184311,4.161,4198.8,4198.5,0.1192]
[1754822185086,4.161,4198.8,4198.5,2.50099577]
[1754822185301,0.002,4198.9,4198.5,2.98929164]
[1754822185501,4.144,4198.7,4198.5,0.60749587]
[1754822185704,0.002,4198.9,4198.5,0.60749587]
[1754822186016,0.002,4198.9,4198.8,2.38163284]
[1754822186315,4.141,4198.8,4198.7,2.38168957]
[1754822187007,4.141,4198.8,4198.6,2.38173481]
[1754822188218,4.141,4198.8,4198.7,2.38168957]
[1754822189082,4.141,4198.8,4198.6,2.38173887]
[1754822189278,4.141,4198.8,4198.7,2.38168957]
[1754822190398,4.586,4198.8,4198.0,2.3820855]
[1754822190600,4.7052,4198.8,4198.3,2.38187341]
[1754822190811,4.7052,4198.8,4198.2,0.1192]
[1754822190812,4.121,4198.7,4198.2,2.50116429]
[1754822191019,4.121,4198.7,4198.2,0.1192]
[1754822191386,4.566,4198.7,4198.4,2.38181428]
[1754822191586,0.1192,4198.8,4198.7,2.38168957]
[1754822191783,0.002,4198.9,4198.5,2.38180302]
[1754822191784,4.119,4198.6,4198.5,2.38180302]
[1754822192123,4.119,4198.6,4198.5,3.30670302]
[1754822192302,4.119,4198.6,4198.5,3.99476129]
[1754822192683,4.119,4198.6,4198.5,3.06986129]
[1754822193930,4.118,4198.9,4198.8,2.38163284]
[1754822194230,4.118,4198.9,4197.7,2.38221699]
[1754822194437,5.0527,4198.9,4197.7,2.38225695]
[1754822194590,5.0527,4198.9,4198.1,2.38200657]
[1754822194782,0.9367,4198.9,4198.1,2.38202243]
[1754822194985,4.107,4198.8,4198.3,2.38187322]
[1754822195187,0.9347,4198.7,4198.2,2.38196424]
[1754822195417,0.9347,4198.6,4198.2,2.38196424]
[1754822195719,0.445,4198.5,4198.2,2.38196424]
[1754822195916,0.445,4198.5,4198.3,2.38190678]
[1754822196127,0.002,4198.9,4198.6,2.38169058]
[1754822196304,0.002,4198.9,4197.8,2.38215284]
[1754822196305,4.102,4198.8,4198.4,2.3818107]
[1754822196498,0.002,4198.9,4198.5,2.38179495]
[1754822196900,0.002,4198.9,4198.0,2.38204304]
[1754822197217,0.002,4198.9,4197.6,0.001]
[1754822197218,0.002,4198.9,4198.7,2.38168957]
[1754822197423,4.098,4198.8,4198.7,2.38168957]
[1754822197724,4.1,4198.9,4198.8,2.38163284]
[1754822198091,1e-08,4198.9,4198.8,3.85653284]
[1754822198391,1e-08,4198.9,4198.8,6.88034916]
[1754822198599,0.002,4199.3,4198.8,6.88034916]
[1754822198600,1e-08,4199.3,4199.2,2.38140598]
[1754822199021,1e-08,4199.3,4199.2,3.85630598]
[1754822199531,1e-08,4199.3,4199.2,6.85630598]
[1754822204427,1e-08,4199.5,4199.3,5.93134927]
[1754822204631,1e-08,4199.5,4199.4,7.40343041]
[1754822204812,1e-08,4199.9,4199.8,2.93106576]
[1754822205327,1e-08,4199.9,4199.8,3.97516576]
[1754822205528,1e-08,4199.9,4199.8,8.04160729]
[1754822205729,1e-08,4199.9,4199.8,8.01779664]
[1754822206113,1e-08,4199.9,4199.8,6.54289664]
[1754822206538,1e-08,4199.9,4199.8,2.50026576]
[1754822208523,1e-08,4199.9,4199.8,3.98717641]
[1754822208724,1e-08,4199.9,4199.8,3.96336576]
[1754822208929,1e-08,4199.9,4199.8,11.02136576]
[1754822209172,0.002,4200.6,4199.8,11.02136576]
[1754822209173,1e-08,4200.2,4200.1,2.93089569]
[1754822209343,1e-08,4200.2,4200.1,11.85329902]
[1754822209543,1e-08,4200.2,4200.1,12.88559902]
[1754822213356,1e-08,4200.2,4200.1,11.97249902]
[1754822213579,1e-08,4200.2,4200.1,12.88559902]
[1754822215036,1e-08,4200.4,4200.3,5.93078232]
[1754822215256,1e-08,4200.4,4200.3,11.84941478]
[1754822215582,1e-08,4200.4,4200.3,12.76251478]
[1754822215960,0.04,4200.9,4200.4,5.38072564]
[1754822216174,0.04,4200.9,4200.8,2.38049895]
[1754822216373,0.04,4200.9,4200.8,2.52350393]
[1754822216681,0.04,4200.9,4200.8,3.44861057]
[1754822216895,0.04,4200.9,4200.8,6.47241555]
[1754822217191,0.04,4200.9,4200.8,6.99861057]
[1754822217682,0.04,4200.9,4200.8,7.91171057]
[1754822218551,0.002,4201.8,4201.7,2.37998905]
[1754822218885,0.002,4201.8,4201.7,2.49918905]
[1754822220274,0.002,4201.8,4201.7,2.98711437]
[1754822220594,0.002,4202.0,4201.9,2.37987577]
[1754822220779,1e-08,4202.0,4201.9,9.97167452]
[1754822220974,1e-08,4202.0,4201.9,10.52977577]
[1754822221158,1e-08,4202.0,4201.9,12.31993912]
[1754822222387,1e-08,4202.0,4201.9,11.40683912]
[1754822222588,1e-08,4202.0,4201.9,12.31993912]
[1754822222902,1e-08,4202.9,4202.8,2.92936613]
[1754822223058,1e-08,4202.9,4202.8,9.94036613]
[1754822223259,1e-08,4202.9,4202.8,11.29154722]
[1754822223485,1e-08,4202.9,4202.8,12.20464722]
[1754822223955,1e-08,4203.1,4203.0,2.37925291]
[1754822224161,1e-08,4203.1,4203.0,5.92925291]
[1754822224771,1e-08,4203.1,4203.0,10.85235291]
[1754822224962,1e-08,4203.1,4203.0,12.31064292]
[1754822225394,1e-08,4203.1,4203.0,12.42984292]
[1754822227055,1e-08,4203.1,4203.0,7.50674292]
[1754822227679,0.46300001,4203.1,4203.0,0.1192]
[1754822227855,0.96050001,4203.1,4203.0,2.49845291]
[1754822228380,0.96050001,4203.1,4203.0,0.1192]
[1754822228579,0.96050001,4203.1,4203.0,2.49845291]
[1754822228785,0.96050001,4203.1,4203.0,0.1192]
[1754822230988,0.46300001,4203.1,4203.0,0.1192]
[1754822231195,1e-08,4203.1,4203.0,0.1192]
[1754822231402,1e-08,4203.1,4203.0,2.49845291]
[1754822231562,0.46300001,4203.1,4203.0,2.49845291]
[1754822231762,0.46300001,4203.1,4203.0,0.1192]
[1754822232391,0.96050001,4203.1,4203.0,0.1192]
[1754822235573,0.96050001,4203.1,4203.0,2.49845291]
[1754822235901,0.46300001,4203.1,4203.0,2.49845291]
[1754822236087,0.46300001,4203.1,4203.0,0.1192]
[1754822236398,0.46300001,4203.1,4203.0,2.49845291]
[1754822237295,1e-08,4203.1,4203.0,2.49845291]
[1754822243910,0.91190001,4203.1,4203.0,2.49845291]
[1754822244602,0.44070001,4203.1,4203.0,2.49845291]
[1754822245115,1e-08,4203.1,4203.0,2.49845291]
[1754822245282,1e-08,4203.1,4203.0,2.98623441]
[1754822245892,1e-08,4203.1,4203.0,2.49845291]
[1754822246194,0.44070001,4203.1,4203.0,0.1192]
[1754822246398,2.37925291,4203.0,4202.0,2.37977119]
[1754822246598,0.9119,4202.9,4202.4,0.1192]
[1754822247091,0.4407,4202.8,4202.4,2.49878671]
[1754822247293,0.9119,4202.8,4202.4,2.49878671]
[1754822247491,0.4407,4202.7,4202.4,2.49878671]
[1754822247927,0.4407,4202.7,4202.5,2.37953599]
[1754822248122,6.32431153,4202.9,4202.4,0.1192]
[1754822248417,0.4407,4202.6,4202.4,0.1192]
[1754822248794,0.4712,4202.5,4202.4,0.1192]
[1754822249097,0.9119,4202.5,4202.4,0.1192]
[1754822249285,4.3857,4202.9,4202.4,0.1192]
[1754822249490,4.3857,4202.9,4202.6,2.37946015]
[1754822249727,0.4407,4202.8,4202.7,0.1192]
[1754822250021,0.9119,4202.8,4202.7,0.1192]
[1754822250224,3.29126613,4202.8,4202.7,0.1192]
[1754822250412,0.9119,4202.8,4201.6,0.001]
[1754822250618,0.9119,4202.7,4202.1,0.1192]
[1754822250926,0.178948,4203.1,4201.6,0.001]
[1754822251222,0.9119,4202.6,4201.9,2.37986847]
[1754822251429,1e-08,4203.1,4201.9,3.0]
[1754822251742,0.9119,4203.0,4202.5,2.37953094]
[1754822251920,1e-08,4203.1,4203.0,2.37925291]
[1754822251921,3.95100001,4203.1,4203.0,2.37925291]
[1754822252228,4.86290001,4203.1,4202.3,3.0]
[1754822252389,4.86290001,4203.1,4202.8,2.37931229]
[1754822252723,0.9119,4203.0,4201.8,3.0]
[1754822252914,0.4407,4202.9,4202.7,2.37941756]
[1754822253220,0.9119,4202.8,4202.6,2.37946996]
[1754822253423,3.95100001,4203.1,4202.6,2.37946996]
[1754822253589,0.4407,4202.7,4202.6,2.37947936]
[1754822254934,0.9119,4202.7,4201.2,2.38026236]
[1754822255140,0.9119,4202.7,4201.2,2.38023347]
[1754822255437,0.9119,4202.7,4200.6,0.9729]
[1754822255438,0.9119,4202.6,4200.6,0.9729]
[1754822255726,2.37990384,4201.9,4201.1,2.38031465]
[1754822255893,3.955,4201.8,4200.8,0.001]
[1754822256089,7.24687766,4201.8,4201.0,2.38033103]
[1754822256292,0.4407,4201.7,4200.8,2.38149651]
[1754822256524,3.29188905,4201.7,4200.8,0.001]
[1754822260129,0.4407,4201.7,4200.8,0.001]
[1754822260425,7.23788905,4201.7,4200.8,2.38149783]
[1754822260617,4.3867,4201.7,4201.2,2.38023524]
[1754822260806,4.3837,4201.7,4201.1,2.38032405]
[1754822261006,4.3837,4201.7,4200.9,2.3804374]
[1754822261214,4.5019,4201.7,4201.2,2.38025904]
[1754822261420,0.1192,4201.7,4201.3,2.38020431]
[1754822261623,4.0602,4201.7,4201.3,2.38020431]
[1754822262006,3.939,4201.7,4201.1,2.38032671]
[1754822262230,3.939,4201.7,4201.3,0.1192]
[1754822262431,3.939,4201.7,4201.4,2.3801125]
[1754822262636,3.939,4201.7,4201.5,2.38010078]
[1754822262803,3.939,4201.7,4201.3,0.1192]
[1754822263230,0.1192,4201.9,4201.3,0.1192]
[1754822263409,3.939,4201.7,4201.3,2.49939988]
[1754822263841,3.939,4201.7,4201.3,0.1192]
[1754822264038,6.75668905,4201.7,4200.8,0.001]
[1754822264339,4.8479,4201.7,4201.1,0.1192]
[1754822264640,7.22788905,4201.7,4201.1,0.1192]
[1754822265002,6.75668905,4201.7,4201.1,0.1192]
[1754822265237,7.22788905,4201.7,4201.1,0.1192]
[1754822265748,4.3767,4201.7,4201.1,0.1192]
[1754822266042,0.1192,4201.9,4201.1,0.1192]
[1754822266043,2.4990929,4201.9,4201.1,0.1192]
[1754822266212,3.934,4201.7,4201.1,0.1192]
[1754822266398,6.31398905,4201.7,4201.1,0.1192]
[1754822266918,6.75468905,4201.7,4201.1,0.1192]
[1754822267123,4.3747,4201.7,4201.1,2.49951902]
[1754822267436,6.75468905,4201.7,4201.1,0.1192]
[1754822268656,7.20748905,4201.7,4200.8,0.001]
[1754822268945,3.27348905,4201.7,4200.8,0.001]
[1754822269240,3.27348905,4201.7,4200.9,2.38043279]
[1754822269241,6.74268905,4201.7,4200.9,2.38043279]
[1754822269624,7.19548905,4201.7,4200.8,0.001]
[1754822270935,6.29998905,4201.7,4200.8,0.9272]
[1754822271259,7.20088905,4201.7,4200.8,0.1202]
[1754822272439,2.82808905,4201.7,4200.8,0.1202]
[1754822272641,3.918,4201.7,4201.0,2.38033714]
[1754822272845,2.37997654,4201.8,4201.1,2.38029584]
[1754822273010,0.1192,4201.9,4201.1,0.4311]
[1754822273011,6.29398905,4201.7,4201.1,0.4311]
[1754822273218,3.913,4201.7,4201.1,0.4311]
[1754822273417,3.913,4201.7,4201.1,0.5503]
[1754822273924,3.913,4201.7,4201.1,2.93061798]
[1754822274132,6.29298905,4201.7,4201.1,0.5503]
[1754822274454,6.28898905,4201.7,4200.8,0.001]
[1754822274654,6.29498905,4201.7,4200.8,0.001]
[1754822274823,6.29498905,4201.7,4201.0,0.1192]
[1754822275418,6.29498905,4201.7,4201.0,2.49957605]
[1754822275817,6.29498905,4201.7,4201.0,0.1192]
[1754822278549,6.74308905,4201.7,4201.0,0.1192]
[1754822278864,6.29498905,4201.7,4201.0,0.1192]
[1754822279275,2.49908562,4201.9,4201.0,0.1192]
[1754822279276,0.1192,4201.9,4201.1,0.02380328]
[1754822279445,3.905,4201.8,4201.6,0.9272]
[1754822279766,2.49879761,4202.4,4201.6,0.9272]
[1754822279767,0.1192,4202.4,4202.0,2.37981042]
[1754822279928,3.904,4202.3,4201.8,0.1192]
[1754822280271,3.904,4202.3,4201.8,1.0454]
[1754822280434,0.1192,4202.4,4201.9,0.9262]
[1754822280639,1e-08,4203.1,4202.5,2.37953395]
[1754822280852,3.902,4203.0,4202.6,2.49867425]
[1754822281158,3.902,4202.9,4202.7,0.9262]
[1754822281320,1e-08,4203.1,4202.6,0.60703178]
[1754822281526,1e-08,4203.1,4202.9,2.37930952]
[1754822281527,3.9,4203.0,4202.9,2.37930952]
[1754822281724,1e-08,4203.1,4203.0,2.37925291]
[1754822281927,3.90000001,4203.1,4203.0,3.30545291]
[1754822282360,1e-08,4203.1,4203.0,3.30545291]
[1754822282553,3.89800001,4203.1,4203.0,3.30545291]
[1754822282734,3.89800001,4203.1,4203.0,3.88585243]
[1754822284842,1e-08,4203.1,4203.0,3.88585243]
[1754822285045,3.89200001,4203.1,4203.0,3.88585243]
[1754822285340,1e-08,4203.1,4203.0,3.88585243]
[1754822285543,3.89000001,4203.1,4203.0,3.88585243]
[1754822285741,1e-08,4203.1,4203.0,3.88585243]
[1754822286362,1e-08,4203.1,4203.0,3.90964495]
[1754822286576,1e-08,4203.1,4203.0,7.43585243]
[1754822292533,1e-08,4203.1,4203.0,5.95965243]
[1754822292735,1e-08,4203.1,4203.0,6.88585243]
[1754822293148,1e-08,4203.1,4203.0,7.43585243]
[1754822294364,1e-08,4203.1,4203.0,6.50965243]
[1754822297968,1e-08,4203.1,4203.0,6.99815243]
[1754822298171,1e-08,4203.1,4203.0,7.42845243]
[1754822298470,1e-08,4203.1,4203.0,6.50965243]
[1754822303069,1e-08,4203.1,4203.0,7.42845243]
[1754822306061,1e-08,4203.1,4203.0,7.52366543]
[1754822306394,1e-08,4203.1,4203.0,6.60486543]
[1754822306554,1e-08,4203.1,4203.0,6.50965243]
[1754822311084,0.47050001,4203.1,4203.0,5.95965243]
[1754822311281,1e-08,4203.1,4203.0,6.07885243]
[1754822312567,1e-08,4203.1,4203.0,7.54765243]
[1754822314910,1e-08,4203.1,4203.0,11.38565243]
[1754822316387,1e-08,4203.1,4203.0,10.46685243]
[1754822316560,1e-08,4203.1,4203.0,6.04845291]
[1754822316887,0.47050001,4203.1,4203.0,6.04845291]
[1754822317256,1e-08,4203.1,4203.0,6.04845291]
[1754822319796,1e-08,4203.1,4203.0,6.96725291]
[1754822319993,1e-08,4203.1,4203.0,10.79225291]
[1754822320165,1e-08,4203.1,4203.0,12.10941243]
[1754822321502,1e-08,4203.1,4203.0,12.11041243]
[1754822325275,1e-08,4203.1,4203.0,12.20562343]
[1754822328606,1e-08,4203.1,4203.0,9.82637052]
[1754822329026,1e-08,4203.1,4203.0,12.20562343]
[1754822329421,1e-08,4203.1,4203.0,13.63462343]
[1754822329622,1e-08,4203.1,4203.0,13.51542343]
[1754822329937,1e-08,4204.0,4203.9,0.55]
[1754822330084,1e-08,4204.0,4203.9,6.633711]
[1754822330290,1e-08,4204.0,4203.9,7.588411]
[1754822331418,1e-08,4204.0,4203.9,6.633711]
[1754822332219,1e-08,4204.0,4203.9,7.588411]
[1754822332589,1e-08,4204.0,4203.9,7.116211]
[1754822332785,1e-08,4204.0,4203.9,6.633711]
[1754822334798,1e-08,4204.0,4203.9,7.588411]
[1754822335509,1e-08,4204.4,4204.3,2.92851723]
[1754822335719,1e-08,4204.4,4204.3,6.75922821]
[1754822335910,1e-08,4204.4,4204.3,6.87842821]
[1754822336706,1e-08,4204.4,4204.3,10.69942821]
[1754822337051,1e-08,4204.4,4204.3,11.65412821]
[1754822338512,1e-08,4204.9,4204.8,2.37823439]
[1754822338717,1e-08,4204.9,4204.8,5.97308881]
[1754822338917,1e-08,4204.9,4204.8,6.92778881]
[1754822339225,1e-08,4204.9,4204.8,7.47778881]
[1754822341839,0.4942,4205.9,4205.8,2.37766893]
[1754822342209,0.04,4205.9,4205.8,2.49686893]
[1754822342521,0.04,4205.9,4205.8,6.66633402]
[1754822342725,1e-08,4205.9,4205.8,6.66633402]
[1754822343048,1e-08,4206.1,4206.0,2.37755587]
[1754822345349,1e-08,4206.1,4206.0,9.19655587]
[1754822346932,1e-08,4206.1,4206.0,5.37755587]
[1754822347146,1e-08,4206.1,4206.0,10.14656486]
[1754822347491,0.91870001,4206.1,4206.0,6.32756486]
[1754822347654,0.91870001,4206.1,4206.0,5.37755587]
[1754822347655,1e-08,4206.1,4206.0,5.37755587]
[1754822347829,1e-08,4206.1,4206.0,5.49675587]
[1754822348023,0.002,4207.4,4206.9,2.37704723]
[1754822348216,0.002,4207.4,4207.3,2.49602123]
[1754822348217,1e-08,4207.4,4207.3,2.49602123]
[1754822348417,1e-08,4207.4,4207.3,10.54049377]
[1754822348629,1e-08,4207.4,4207.3,11.01269377]
[1754822349029,1e-08,4207.9,4207.4,3.0]
[1754822349355,1e-08,4207.9,4207.8,5.4957388]
[1754822350343,1e-08,4207.9,4207.8,9.3137388]
[1754822350546,1e-08,4207.9,4207.8,7.04657221]
[1754822350747,1e-08,4207.9,4207.8,6.92737221]
[1754822351055,1e-08,4207.9,4207.8,7.04657221]
[1754822352453,1e-08,4207.9,4207.8,7.51877221]
[1754822354233,1e-08,4207.9,4207.8,8.00127221]
[1754822355495,1e-08,4208.2,4207.8,14.48256441]
[1754822355651,1e-08,4208.2,4208.0,5.37642585]
[1754822355850,1e-08,4208.9,4208.4,2.37619557]
[1754822356050,1e-08,4208.9,4208.8,2.49437414]
[1754822356249,1e-08,4208.9,4208.8,9.33413388]
[1754822356458,1e-08,4208.9,4208.8,9.31037414]
[1754822356677,0.4645,4210.7,4210.6,2.37495843]
[1754822357248,0.6249,4210.7,4210.6,2.49335843]
[1754822357449,0.6249,4210.7,4210.6,2.37495843]
[1754822358380,0.6249,4210.7,4210.5,2.37497523]
[1754822358381,0.55,4210.6,4210.5,2.37497523]
[1754822358582,1.30219,4210.6,4210.5,2.37497523]
[1754822358796,1.1807,4210.6,4210.5,2.37497523]
[1754822360082,1.0203,4210.6,4210.5,2.37497523]
[1754822360280,0.55,4210.8,4210.7,2.37490203]
[1754822360448,0.04,4210.9,4210.8,2.37484563]
[1754822360650,0.04,4210.9,4210.8,5.37484563]
[1754822361277,1.0603,4210.9,4210.8,5.37484563]
[1754822361582,1.2207,4210.9,4210.8,2.37484563]
[1754822362081,1.2207,4210.9,4210.7,3.0]
[1754822362269,1.2207,4210.9,4209.0,3.0]
[1754822362270,1.1807,4210.8,4209.0,3.0]
[1754822362472,1.1807,4210.8,4207.6,0.04]
[1754822362473,0.55,4210.4,4208.5,3.814]
[1754822362691,0.55,4210.2,4209.7,2.37546521]
[1754822362985,0.55,4210.4,4209.7,2.37546521]
[1754822362986,0.6307,4210.1,4209.7,2.37546521]